fUST/lending_fUST_20260206
["ID","MTS","AMOUNT","RATE_DAILY","PERIOD"]
[404576764,1770307202151,180.01,0.00012,2]
[404576765,1770307202617,180.01,0.000126,2]
[404576766,1770307202965,180.01,0.000132,2]
[404576767,1770307203329,180.01,0.000138,2]
[404576768,1770307230438,196262.02,0.000138,2]
[404576769,1770307263076,-268.18024339,0.00013821,2]
[404576770,1770307275554,500.0,0.0001372,2]
[404576771,1770307276370,288.80369031,0.00027894,120]
[404576786,1770307443220,500.0,0.00013273,2]
[404576789,1770307499877,300.0,0.0001308,2]
[404576790,1770307501794,300.0,0.0001382,2]
[404576791,1770307502333,300.0,0.0001382,2]
[404576792,1770307502633,1200.0,0.0001382,2]
[404576793,1770307502883,300.0,0.0001382,2]
[404576794,1770307504200,500.0,0.00013273,2]
[404576795,1770307504258,500.0,0.00013273,2]
[404576798,1770307517105,173.0,0.00028452,120]
[404576799,1770307518537,173.0,0.00029874,120]
[404576802,1770307557554,9024.9598888,0.0001308,2]
[404576817,1770307802633,1200.0,0.0001382,2]
[404576818,1770307808558,178.0,0.00029157,120]
[404576834,1770307832324,-500.0,0.00013821,2]
[404576835,1770307832334,-170.94,0.00013821,2]
[404576836,1770307832345,-329.06,0.00013821,2]
[404576837,1770307832355,-213.94,0.00013821,2]
[404576838,1770307832366,-286.06,0.00013821,2]
[404576840,1770307832374,-78.18926893,0.00013821,2]
[404576842,1770307832385,-921.81073107,0.00013821,2]
[404576843,1770307832394,-150.0,0.00013821,2]
[404576844,1770307832403,-617.0,0.00013821,2]
[404576845,1770307832412,-6921.49678698,0.00014034,2]
[404576846,1770307832420,-12.36290935,0.00014087,2]
[404576847,1770307832432,-138.63709065,0.00014087,2]
[404576848,1770307832441,-151.0,0.00014087,2]
[404576849,1770307832450,-151.0,0.00014087,2]
[404576850,1770307832462,-151.0,0.00014087,2]
[404576851,1770307832472,-151.0,0.00014087,2]
[404576852,1770307832482,-151.0,0.00014087,2]
[404576853,1770307832492,-151.0,0.00014087,2]
[404576854,1770307832501,-151.0,0.00014087,2]
[404576855,1770307832510,-151.0,0.00014087,2]
[404576856,1770307832520,-151.0,0.00014087,2]
[404576857,1770307832529,-151.0,0.00014087,2]
[404576858,1770307832539,-151.0,0.00014087,2]
[404576859,1770307832549,-166.16548078,0.00014087,2]
[404576860,1770307832559,-7249.10279997,0.00014093,2]
[404576918,1770307842152,-180.0,0.00014087,2]
[404576919,1770307842162,-2555.9160785,0.00014093,2]
[404576920,1770307842171,-500.0,0.00014093,2]
[404576921,1770307842180,-385.61904915,0.00014093,2]
[404576922,1770307842190,-500.0,0.00014093,2]
[404576923,1770307842199,-230.75511961,0.00014093,2]
[404576924,1770307842208,-500.0,0.00014094,2]
[404576925,1770307842221,-500.0,0.00014094,2]
[404576926,1770307842231,-500.0,0.00014094,2]
[404576927,1770307842239,-500.0,0.00014094,2]
[404576928,1770307842249,-412.67580206,0.00014094,2]
[404576929,1770307842259,-500.0,0.00014094,2]
[404576930,1770307842268,-500.0,0.00014094,2]
[404576931,1770307842278,-500.0,0.00014094,2]
[404576932,1770307842287,-500.0,0.00014094,2]
[404576933,1770307842297,-500.0,0.00014094,2]
[404576934,1770307842306,-500.0,0.00014094,2]
[404576935,1770307842315,-500.0,0.00014094,2]
[404576936,1770307842325,-179.57006672,0.00014094,2]
[404576937,1770307842334,-300.0,0.00014096,2]
[404576938,1770307842344,-300.0,0.00014096,2]
[404576939,1770307842353,-300.0,0.00014096,2]
[404576940,1770307842363,-300.0,0.00014096,2]
[404576941,1770307842372,-300.0,0.00014096,2]
[404576942,1770307842381,-300.0,0.00014096,2]
[404576943,1770307842391,-300.0,0.00014096,2]
[404576944,1770307842400,-300.0,0.00014096,2]
[404576945,1770307842410,-300.0,0.00014096,2]
[404576946,1770307842419,-300.0,0.00014096,2]
[404576947,1770307842428,-300.0,0.00014096,2]
[404576948,1770307842438,-300.0,0.00014096,2]
[404576949,1770307842447,-300.0,0.00014096,2]
[404576950,1770307842556,-300.0,0.00014096,2]
[404576951,1770307842573,-300.0,0.00014096,2]
[404576952,1770307842582,-1399.40137335,0.00014368,2]
[404576953,1770307842592,-1000.0,0.00014553,2]
[404576954,1770307842601,-500.0,0.00014589,2]
[404576955,1770307842611,-500.0,0.00014589,2]
[404576956,1770307842621,-500.0,0.00014589,2]
[404576957,1770307842632,-600.0,0.00014655,2]
[404576958,1770307842642,-6730.8683479,0.00015096,2]
[404576959,1770307842651,-10620.4477055,0.00015101,2]
[404576960,1770307842662,-375.0,0.00015202,2]
[404576961,1770307842671,-724.81,0.00015342,2]
[404576962,1770307842681,-518.3694495,0.00015396,2]
[404576963,1770307842690,-14904.90339123,0.00015452,2]
[404576964,1770307842700,-177.0,0.00015821,2]
[404576965,1770307842710,-720.0,0.0001612,2]
[404576966,1770307842723,-180.0,0.00016826,2]
[404576967,1770307842733,-6730.8683479,0.00016923,2]
[404576968,1770307842742,-10620.4477055,0.00016933,2]
[404576969,1770307842751,-518.3694495,0.00017522,2]
[404576970,1770307842760,-864.0,0.00017732,2]
[404576973,1770307842770,-464.86258573,0.000178,2]
[404576974,1770307842779,-500.0,0.000178,2]
[404576975,1770307842787,-250.0,0.00017808,5]
[404576977,1770307842797,-204.0,0.00017821,2]
[404576978,1770307842806,-682.66711373,0.00018,2]
[404576979,1770307842815,-298.44592047,0.00018007,2]
[404576980,1770307842826,-2464.12386759,0.0001865,2]
[404576981,1770307842835,-6730.8683479,0.00018749,2]
[404576982,1770307842844,-10620.4477055,0.00018764,2]
[404576983,1770307842854,-1000.0,0.00019506,2]
[404576984,1770307842863,-242.64369353,0.00019565,2]
[404576985,1770307842872,-518.3694495,0.00019648,2]
[404576986,1770307842882,-231.0,0.00019821,2]
[404576987,1770307842892,-710.0,0.0002,4]
[404576988,1770307842902,-1000.0,0.00021456,10]
[404576989,1770307842913,-244.0,0.00021456,10]
[404576990,1770307842923,-258.0,0.00021821,2]
[404576991,1770307842933,-1000.0,0.00022,4]
[404576992,1770307842942,-235.82,0.00022,7]
[404576993,1770307842953,-1000.0,0.00023602,10]
[404576994,1770307842966,-492.0,0.00023602,10]
[404576995,1770307842976,-285.0,0.00023821,2]
[404576996,1770307842986,-487.8,0.0002399,3]
[404576997,1770307842995,-1000.0,0.00024,6]
[404576998,1770307843005,-175.31141737,0.0002475,2]
[404576999,1770307843014,-1227.731945,0.000249,2]
[404577000,1770307843023,-312.0,0.00025821,2]
[404577001,1770307843032,-1000.0,0.00025962,10]
[404577002,1770307843042,-791.0,0.00025962,10]
[404577003,1770307843051,-357.87882367,0.00025994,2]
[404577004,1770307843061,-1431.51529468,0.00025994,2]
[404577005,1770307843070,-315.49570095,0.00025994,2]
[404577006,1770307843079,-366.93161644,0.00025994,2]
[404577007,1770307843088,-1000.0,0.00026,6]
[404577008,1770307843097,-1787.80897206,0.00026053,2]
[404577009,1770307843108,-336.73713849,0.00026114,2]
[404577010,1770307843117,-613.8659725,0.00027811,2]
[404577011,1770307843126,-237.44444776,0.00027821,2]
[404577012,1770307843135,-1000.0,0.00028,8]
[404577013,1770307843144,-1000.0,0.00028558,30]
[404577014,1770307843154,-1000.0,0.00028558,30]
[404577015,1770307843163,-1000.0,0.0003,10]
[404577016,1770307843173,-655.985082,0.00030137,15]
[404577017,1770307843183,-6921.49678698,0.00030799,2]
[404577018,1770307843192,-173.0,0.00031368,120]
[404577019,1770307843202,-1000.0,0.00031414,30]
[404577020,1770307843212,-1000.0,0.00031414,30]
[404577021,1770307843224,-579.0,0.00031414,30]
[404577022,1770307843233,-402.34513759,0.00031564,2]
[404577023,1770307843243,-365.48217965,0.00032451,2]
[404577024,1770307843252,-657.86792338,0.00032451,2]
[404577025,1770307843261,-1169.54297489,0.00032451,2]
[404577026,1770307843270,-210.52806484,0.00032451,2]
[404577027,1770307843280,-378.95051672,0.00032451,2]
[404577028,1770307843289,-673.6898075,0.00032451,2]
[404577029,1770307843298,-373.622,0.00032556,32]
[404577030,1770307843307,-1041.66666667,0.0003281,2]
[404577031,1770307843317,-741.26793723,0.0003281,2]
[404577032,1770307843326,-1227.731945,0.00032867,2]
[404577033,1770307843335,-500.0,0.00032877,7]
[404577034,1770307843344,-216.04,0.000329,30]
[404577035,1770307843353,-1468.4,0.000329,2]
[404577036,1770307843363,-173.0,0.00032937,120]
[404577037,1770307843371,-741.26793723,0.000339,7]
[404577038,1770307843381,-245.38243457,0.00034455,2]
[404577039,1770307843391,-1000.0,0.00034555,30]
[404577040,1770307843400,-1000.0,0.00034555,30]
[404577041,1770307843410,-1000.0,0.00034555,30]
[404577042,1770307843419,-173.0,0.00034583,120]
[404577043,1770307843429,-741.26793723,0.000349,7]
[404577044,1770307843439,-8166.0,0.00035,120]
[404577045,1770307843448,-5432.413931,0.00036094,60]
[404577046,1770307843457,-1827.219522,0.00036104,60]
[404577047,1770307843470,-2611.708353,0.00036612,60]
[404577048,1770307843480,-198.56,0.00036966,60]
[404577049,1770307843490,-198.57969969,0.00037066,60]
[404577050,1770307843500,-10864.827866,0.00037256,60]
[404577051,1770307843510,-613.8659725,0.000378,3]
[404577052,1770307843520,-613.8659725,0.00037994,3]
[404577053,1770307843530,-261.38339144,0.00038004,2]
[404577054,1770307843540,-250.0,0.00038004,2]
[404577055,1770307843550,-151.0,0.00038004,2]
[404577056,1770307843560,-250.0,0.00038004,2]
[404577057,1770307843569,-250.0,0.00038004,2]
[404577058,1770307843580,-250.0,0.00038004,2]
[404577059,1770307843591,-151.0,0.00038004,2]
[404577060,1770307843600,-250.0,0.00038004,2]
[404577061,1770307843610,-250.0,0.00038004,2]
[404577062,1770307843619,-2000.0,0.00038004,2]
[404577063,1770307843628,-250.0,0.00038004,2]
[404577064,1770307843638,-151.0,0.00038004,2]
[404577065,1770307843647,-250.0,0.00038004,2]
[404577066,1770307843656,-250.0,0.00038004,2]
[404577067,1770307843666,-2000.0,0.00038004,2]
[404577068,1770307843675,-250.0,0.00038004,2]
[404577069,1770307843685,-250.0,0.00038004,2]
[404577070,1770307843695,-151.0,0.00038004,2]
[404577071,1770307843704,-250.0,0.00038004,2]
[404577072,1770307843715,-2000.0,0.00038004,2]
[404577073,1770307843724,-250.0,0.00038004,2]
[404577074,1770307843734,-151.0,0.00038004,2]
[404577075,1770307843744,-250.0,0.00038004,2]
[404577076,1770307843753,-2000.0,0.00038004,2]
[404577077,1770307843762,-250.0,0.00038004,2]
[404577078,1770307843771,-250.0,0.00038004,2]
[404577079,1770307843781,-173.49232412,0.00038004,2]
[404577080,1770307843790,-250.0,0.00038004,2]
[404577081,1770307843799,-2000.0,0.00038004,2]
[404577082,1770307843809,-253.05470946,0.00038004,2]
[404577083,1770307843818,-250.0,0.00038004,2]
[404577084,1770307843827,-250.0,0.00038004,2]
[404577085,1770307843837,-2000.0,0.00038004,2]
[404577086,1770307843846,-500.0,0.00038004,2]
[404577087,1770307843855,-250.0,0.00038004,2]
[404577088,1770307843865,-250.0,0.00038004,2]
[404577089,1770307843874,-250.0,0.00038004,2]
[404577090,1770307843883,-2000.0,0.00038004,2]
[404577091,1770307843894,-500.0,0.00038004,2]
[404577092,1770307843905,-250.0,0.00038004,2]
[404577093,1770307843915,-250.0,0.00038004,2]
[404577094,1770307843925,-2000.0,0.00038004,2]
[404577095,1770307843942,-500.0,0.00038004,2]
[404577096,1770307843951,-250.0,0.00038004,2]
[404577097,1770307843964,-250.0,0.00038004,2]
[404577098,1770307843977,-250.0,0.00038004,2]
[404577099,1770307843987,-500.0,0.00038004,2]
[404577100,1770307843997,-2000.0,0.00038004,2]
[404577101,1770307844006,-151.0,0.00038004,2]
[404577102,1770307844016,-250.0,0.00038004,2]
[404577103,1770307844025,-250.0,0.00038004,2]
[404577104,1770307844035,-250.0,0.00038004,2]
[404577105,1770307844044,-500.0,0.00038004,2]
[404577106,1770307844054,-151.0,0.00038004,2]
[404577107,1770307844063,-2000.0,0.00038004,2]
[404577108,1770307844073,-250.0,0.00038004,2]
[404577109,1770307844083,-500.0,0.00038004,2]
[404577110,1770307844092,-2000.0,0.00038004,2]
[404577112,1770307844102,-151.0,0.00038004,2]
[404577114,1770307844112,-250.0,0.00038004,2]
[404577115,1770307844121,-522.19696825,0.00038004,2]
[404577116,1770307844131,-151.0,0.00038004,2]
[404577117,1770307844140,-2000.0,0.00038004,2]
[404577118,1770307844150,-250.0,0.00038004,2]
[404577119,1770307844159,-209.40437684,0.00038004,2]
[404577120,1770307844168,-151.0,0.00038004,2]
[404577121,1770307844177,-2000.0,0.00038004,2]
[404577122,1770307844186,-250.0,0.00038004,2]
[404577123,1770307844196,-2000.0,0.00038004,2]
[404577124,1770307844205,-151.0,0.00038004,2]
[404577125,1770307844219,-217.15233878,0.00038004,2]
[404577126,1770307844228,-151.0,0.00038004,2]
[404577127,1770307844238,-2000.0,0.00038004,2]
[404577128,1770307844248,-250.0,0.00038004,2]
[404577130,1770307844257,-225.18697532,0.00038004,2]
[404577132,1770307844267,-151.0,0.00038004,2]
[404577135,1770307844276,-250.0,0.00038004,2]
[404577138,1770307844285,-151.0,0.00038004,2]
[404577141,1770307844294,-233.51889341,0.00038004,2]
[404577144,1770307844303,-151.0,0.00038004,2]
[404577146,1770307844312,-250.0,0.00038004,2]
[404577148,1770307844321,-242.15909246,0.00038004,2]
[404577149,1770307844330,-151.0,0.00038004,2]
[404577150,1770307844339,-250.0,0.00038004,2]
[404577151,1770307844348,-251.11897888,0.00038004,2]
[404577152,1770307844357,-154.55577643,0.00038004,2]
[404577153,1770307844366,-250.0,0.00038004,2]
[404577154,1770307844375,-260.4103811,0.00038004,2]
[404577156,1770307844384,-270.0455652,0.00038004,2]
[404577158,1770307844393,-280.03725112,0.00038004,2]
[404577160,1770307844403,-290.39862941,0.00038004,2]
[404577162,1770307844412,-1000.0,0.00038004,2]
[404577164,1770307844421,-301.1433787,0.00038004,2]
[404577166,1770307844431,-1000.0,0.00038004,2]
[404577168,1770307844440,-1000.0,0.00038004,2]
[404577170,1770307844450,-1000.0,0.00038004,2]
[404577172,1770307844459,-1000.0,0.00038004,2]
[404577174,1770307844473,-1000.0,0.00038004,2]
[404577176,1770307844482,-1000.0,0.00038004,2]
[404577178,1770307844492,-1000.0,0.00038004,2]
[404577180,1770307844501,-1000.0,0.00038004,2]
[404577182,1770307844511,-1000.0,0.00038004,2]
[404577184,1770307844520,-500.0,0.00038004,2]
[404577186,1770307844529,-1000.0,0.00038004,2]
[404577188,1770307844538,-500.0,0.00038004,2]
[404577189,1770307844548,-1000.0,0.00038011,30]
[404577191,1770307844558,-1000.0,0.00038011,30]
[404577194,1770307844568,-1000.0,0.00038011,30]
[404577196,1770307844576,-715.0,0.00038011,30]
[404577197,1770307844586,-232.689232,0.00038552,2]
[404577200,1770307844595,-1395.78570246,0.00038603,10]
[404577202,1770307844605,-168.0,0.00038644,2]
[404577203,1770307844614,-168.0,0.00038766,2]
[404577205,1770307844623,-1468.4,0.000388,2]
[404577207,1770307844632,-395.79581623,0.00038805,2]
[404577209,1770307844641,-712.43246922,0.00038805,2]
[404577211,1770307844651,-1266.54661194,0.00038805,2]
[404577213,1770307844661,-168.0,0.00039216,2]
[404577215,1770307844670,-1019.96,0.00039699,120]
[404577216,1770307844679,-1019.96,0.00039699,120]
[404577218,1770307844689,-1019.96,0.00039699,120]
[404577220,1770307844698,-1019.96,0.00039699,120]
[404577221,1770307844707,-1019.96,0.00039699,120]
[404577222,1770307844721,-1019.96,0.00039699,120]
[404577223,1770307844730,-1019.96,0.00039699,120]
[404577224,1770307844739,-1019.96,0.00039699,120]
[404577225,1770307844748,-1019.96,0.00039699,120]
[404577226,1770307844757,-1019.96,0.00039699,120]
[404577227,1770307844766,-1019.96,0.00039699,120]
[404577228,1770307844775,-1019.96,0.00039699,120]
[404577229,1770307844785,-1019.96,0.00039699,120]
[404577230,1770307844794,-1019.96,0.00039699,120]
[404577231,1770307844803,-1019.96,0.00039699,120]
[404577232,1770307844812,-1019.96,0.00039699,120]
[404577233,1770307844820,-1019.96,0.00039699,120]
[404577234,1770307844829,-1019.96,0.00039699,120]
[404577235,1770307844838,-1019.96,0.00039699,120]
[404577236,1770307844847,-1019.96,0.00039699,120]
[404577237,1770307844855,-1019.96,0.00039699,120]
[404577238,1770307844866,-1019.96,0.00039699,120]
[404577239,1770307844874,-1019.96,0.00039699,120]
[404577240,1770307844883,-1019.96,0.00039699,120]
[404577241,1770307844893,-1019.96,0.00039699,120]
[404577242,1770307844902,-1019.96,0.00039699,120]
[404577243,1770307844913,-1019.96,0.00039699,120]
[404577244,1770307844922,-1019.96,0.00039699,120]
[404577245,1770307844931,-1019.96,0.00039699,120]
[404577246,1770307844939,-1019.96,0.00039699,120]
[404577247,1770307844949,-1019.96,0.00039699,120]
[404577249,1770307844958,-1019.96,0.00039699,120]
[404577250,1770307844974,-1019.96,0.00039699,120]
[404577252,1770307844983,-1019.96,0.00039699,120]
[404577254,1770307844992,-1019.96,0.00039699,120]
[404577256,1770307845001,-1019.96,0.00039699,120]
[404577258,1770307845010,-1019.96,0.00039699,120]
[404577260,1770307845019,-1019.96,0.00039699,120]
[404577262,1770307845028,-1019.96,0.00039699,120]
[404577264,1770307845038,-1019.96,0.00039699,120]
[404577266,1770307845047,-1019.96,0.00039699,120]
[404577268,1770307845057,-1019.96,0.00039699,120]
[404577270,1770307845066,-1019.96,0.00039699,120]
[404577272,1770307845075,-1019.96,0.00039699,120]
[404577274,1770307845085,-1019.96,0.00039699,120]
[404577276,1770307845094,-1019.96,0.00039699,120]
[404577278,1770307845103,-1019.96,0.00039699,120]
[404577280,1770307845112,-1019.96,0.00039699,120]
[404577282,1770307845121,-1019.96,0.00039699,120]
[404577284,1770307845130,-1019.96,0.00039699,120]
[404577299,1770307845249,-853.2545755,0.00039699,120]
[404577301,1770307845259,-213.49164856,0.00039699,120]
[404577303,1770307845268,-213.49164856,0.00039699,120]
[404577305,1770307845277,-213.49164856,0.00039699,120]
[404577307,1770307845286,-4991.23607094,0.00039699,120]
[404577309,1770307845295,-30041.960001,0.00039699,30]
[404577311,1770307845304,-250.0,0.00039699,10]
[404577313,1770307845313,-250.0,0.00039699,10]
[404577315,1770307845322,-250.0,0.00039699,10]
[404577316,1770307845331,-352.102841,0.00039699,10]
[404577318,1770307845340,-300000.0,0.00039699,30]
[404577321,1770307845350,-436.74,0.000398,14]
[404577323,1770307845359,-1607.0257669,0.000398,120]
[404577324,1770307845369,-4640.26298572,0.0003999,2]
[404577326,1770307845378,-245.38243453,0.00040337,2]
[404577328,1770307845387,-298.25,0.00040993,120]
[404577330,1770307845396,-1000.0,0.00041812,60]
[404577333,1770307845406,-1000.0,0.00041812,60]
[404577335,1770307845415,-1000.0,0.00041812,60]
[404577337,1770307845425,-250.0,0.00042327,54]
[404577339,1770307845434,-957.26491239,0.000435,15]
[404577341,1770307845444,-245.38243453,0.00046219,2]
[404577343,1770307845453,-150.0,0.00046683,60]
[404577345,1770307845462,-307.620918,0.00046683,60]
[404577346,1770307845476,-465.241837,0.00046683,60]
[404577349,1770307845486,-622.862756,0.00046683,60]
[404577350,1770307845495,-780.483675,0.00046683,60]
[404577353,1770307845505,-938.104594,0.00046683,60]
[404577355,1770307845514,-1095.725512,0.00046683,60]
[404577356,1770307845523,-1253.346431,0.00046683,60]
[404577359,1770307845533,-1410.96735,0.00046683,60]
[404577360,1770307845543,-1568.588269,0.00046683,60]
[404577362,1770307845553,-582.044349,0.00046922,60]
[404577364,1770307845562,-613.8659725,0.00046934,4]
[404577366,1770307845572,-195.77352,0.00046935,60]
[404577368,1770307845581,-209.795448,0.00046935,60]
[404577370,1770307845591,-4579.496046,0.00046944,60]
[404577372,1770307845600,-5317.745387,0.00046944,60]
[404577374,1770307845610,-6055.994728,0.00046944,60]
[404577376,1770307845620,-6794.244069,0.00046944,60]
[404577378,1770307845630,-2000.0,0.00047313,7]
[404577381,1770307845640,-6921.49678698,0.00047564,2]
[404577383,1770307845650,-193.459878,0.00047595,60]
[404577385,1770307845659,-600.0,0.00047724,60]
[404577387,1770307845669,-600.0,0.00047912,60]
[404577389,1770307845679,-436.74,0.00048,14]
[404577391,1770307845688,-400.0,0.00048994,15]
[404577393,1770307845698,-1468.4,0.000492,2]
[404577395,1770307845708,-3762.08,0.00049621,15]
[404577397,1770307845722,-600.0,0.00049648,60]
[404577400,1770307845732,-500.0,0.00049855,18]
[404577403,1770307845743,-600.0,0.00049945,60]
[404577405,1770307845752,-159.0,0.0005,120]
[404577407,1770307845762,-334.86,0.00050136,30]
[404577409,1770307845772,-250.0,0.00050489,90]
[404577411,1770307845782,-1119.45,0.00050521,15]
[404577413,1770307845791,-334.86,0.00050821,32]
[404577415,1770307845800,-991.08,0.00051206,15]
[404577417,1770307845810,-334.86,0.00051506,34]
[404577419,1770307845819,-159.0,0.000516,120]
[404577421,1770307845829,-373.623,0.00051917,94]
[404577423,1770307845838,-436.74,0.00052,14]
[404577425,1770307845848,-500.0,0.00052075,120]
[404577428,1770307845858,-245.38243453,0.000521,2]
[404577430,1770307845868,-334.86,0.00052191,36]
[404577432,1770307845878,-1468.4,0.000522,2]
[404577434,1770307845887,-600.0,0.00052334,120]
[404577436,1770307845898,-9429.68,0.00052576,15]
[404577438,1770307845908,-334.86,0.00052876,38]
[404577440,1770307845918,-159.0,0.000532,120]
[404577442,1770307845927,-250.0,0.00053206,110]
[404577444,1770307845937,-333.94,0.00053261,15]
[404577446,1770307845947,-9217.4615966,0.00053325,120]
[404577448,1770307845956,-613.8659725,0.00053415,4]
[404577450,1770307845970,-500.0,0.00053425,120]
[404577453,1770307845980,-500.0,0.00053425,120]
[404577455,1770307845990,-500.0,0.00053425,120]
[404577457,1770307846000,-500.0,0.00053425,120]
[404577459,1770307846009,-500.0,0.00053425,120]
[404577461,1770307846019,-250.0,0.00053425,120]
[404577463,1770307846029,-500.0,0.00053425,120]
[404577465,1770307846038,-500.0,0.00053425,120]
[404577467,1770307846048,-500.0,0.00053425,120]
[404577469,1770307846058,-569.79716894,0.00053425,120]
[404577471,1770307846069,-500.0,0.00053425,120]
[404577473,1770307846079,-500.0,0.00053425,120]
[404577475,1770307846089,-500.0,0.00053425,120]
[404577477,1770307846098,-282.228403,0.00053425,120]
[404577479,1770307846108,-500.0,0.00053425,120]
[404577481,1770307846118,-500.0,0.00053425,120]
[404577483,1770307846127,-500.0,0.00053425,120]
[404577485,1770307846137,-500.0,0.00053425,120]
[404577487,1770307846147,-500.0,0.00053425,120]
[404577489,1770307846156,-500.0,0.00053425,120]
[404577491,1770307846166,-500.0,0.00053425,120]
[404577493,1770307846176,-500.0,0.00053425,120]
[404577495,1770307846184,-500.0,0.00053425,120]
[404577497,1770307846194,-161.31310307,0.00053425,120]
[404577499,1770307846203,-500.0,0.00053425,120]
[404577501,1770307846213,-500.0,0.00053425,120]
[404577503,1770307846226,-500.0,0.00053425,120]
[404577505,1770307846235,-500.0,0.00053425,120]
[404577507,1770307846244,-500.0,0.00053425,120]
[404577509,1770307846254,-326.0,0.00053425,120]
[404577511,1770307846264,-150.0,0.00053425,120]
[404577513,1770307846273,-500.0,0.00053425,120]
[404577515,1770307846283,-183.7169374,0.00053425,120]
[404577517,1770307846293,-150.43362304,0.00053425,120]
[404577519,1770307846302,-500.0,0.00053425,120]
[404577521,1770307846311,-500.0,0.00053425,120]
[404577523,1770307846320,-517.47382596,0.00053425,120]
[404577525,1770307846330,-500.0,0.00053425,120]
[404577527,1770307846339,-500.0,0.00053425,120]
[404577529,1770307846348,-500.0,0.00053425,120]
[404577531,1770307846357,-445.23500925,0.00053425,120]
[404577533,1770307846366,-150.0,0.00053425,120]
[404577534,1770307846375,-150.0,0.00053425,120]
[404577536,1770307846385,-150.0,0.00053425,120]
[404577539,1770307846395,-160.51801978,0.00053425,120]
[404577540,1770307846405,-500.0,0.00053425,120]
[404577542,1770307846414,-500.0,0.00053425,120]
[404577544,1770307846424,-500.0,0.00053425,120]
[404577546,1770307846433,-500.0,0.00053425,120]
[404577548,1770307846442,-500.0,0.00053425,120]
[404577550,1770307846452,-500.0,0.00053425,120]
[404577552,1770307846461,-500.0,0.00053425,120]
[404577554,1770307846473,-150.0,0.00053425,120]
[404577556,1770307846482,-150.0,0.00053425,120]
[404577558,1770307846492,-500.0,0.00053425,120]
[404577560,1770307846501,-214.73745831,0.00053425,120]
[404577562,1770307846511,-500.0,0.00053425,120]
[404577564,1770307846520,-500.0,0.00053425,120]
[404577566,1770307846530,-500.0,0.00053425,120]
[404577568,1770307846539,-500.0,0.00053425,120]
[404577570,1770307846548,-500.0,0.00053425,120]
[404577572,1770307846558,-500.0,0.00053425,120]
[404577574,1770307846567,-500.0,0.00053425,120]
[404577576,1770307846577,-500.0,0.00053425,120]
[404577578,1770307846587,-469.07878293,0.00053425,120]
[404577580,1770307846597,-500.0,0.00053425,120]
[404577582,1770307846606,-576.9020658,0.00053425,120]
[404577584,1770307846616,-500.0,0.00053425,120]
[404577585,1770307846625,-500.0,0.00053425,120]
[404577587,1770307846635,-500.0,0.00053425,120]
[404577589,1770307846644,-500.0,0.00053425,120]
[404577592,1770307846657,-500.0,0.00053425,120]
[404577594,1770307846667,-500.0,0.00053425,120]
[404577596,1770307846677,-500.0,0.00053425,120]
[404577598,1770307846686,-507.20295772,0.00053425,120]
[404577599,1770307846695,-280.79633598,0.00053425,120]
[404577601,1770307846704,-334.86,0.00053561,40]
[404577603,1770307846713,-80237.35,0.00053946,15]
[404577605,1770307846724,-250.0,0.0005411,117]
[404577607,1770307846734,-334.86,0.00054246,42]